[Event "Titled Tuesday Blitz February 15 Late 2022"]
[White "Romero Ruscalleda, Josep"]
[Black "Golubev, Mikhail"]
[WhiteFideId "2231859"]
[BlackFideId "14100983"]
[WhiteElo "2425"]
[BlackElo "2374"]
[Result "1-0"]
[Round "09"]
[TimeControl "180+1"]
[Date "2022.02.16"]
[WhiteClock "0:00:57"]
[BlackClock "0:00:01"]

1. e4 {[%clk 0:02:57]}  c5 {[%clk 0:02:59]} 2. c3 {[%clk 0:02:57]}  d5 {[%clk 0:02:58]} 3. exd5 {[%clk 0:02:57]}  Qxd5 {[%clk 0:02:58]} 4. d4 {[%clk 0:02:58]}  g6 {[%clk 0:02:58]} 5. Na3 {[%clk 0:02:55]}  Bg7 {[%clk 0:02:43]} 6. Be3 {[%clk 0:02:54]}  cxd4 {[%clk 0:02:31]} 7. Nb5 {[%clk 0:02:54]}  Na6 {[%clk 0:02:29]} 8. Qa4 {[%clk 0:02:53]}  Qd7 {[%clk 0:01:53]} 9. O-O-O {[%clk 0:02:46]}  dxe3 {[%clk 0:01:20]} 10. Rxd7 {[%clk 0:02:43]}  Bxd7 {[%clk 0:01:21]} 11. fxe3 {[%clk 0:02:41]}  Nf6 {[%clk 0:01:19]} 12. Nf3 {[%clk 0:02:40]}  O-O {[%clk 0:01:18]} 13. Ne5 {[%clk 0:02:40]}  Bf5 {[%clk 0:00:50]} 14. Nd4 {[%clk 0:02:23]}  Nc5 {[%clk 0:00:42]} 15. Qa3 {[%clk 0:02:18]}  Rac8 {[%clk 0:00:33]} 16. Nxf5 {[%clk 0:02:17]}  gxf5 {[%clk 0:00:33]} 17. Be2 {[%clk 0:02:08]}  Nfe4 {[%clk 0:00:33]} 18. Nf3 {[%clk 0:02:06]}  Nxc3 {[%clk 0:00:32]} 19. bxc3 {[%clk 0:02:05]}  Ne4 {[%clk 0:00:26]} 20. c4 {[%clk 0:01:58]}  b5 {[%clk 0:00:25]} 21. Nd2 {[%clk 0:01:47]}  Nc3 {[%clk 0:00:24]} 22. Bf3 {[%clk 0:01:45]}  b4 {[%clk 0:00:22]} 23. Qb3 {[%clk 0:01:38]}  a5 {[%clk 0:00:21]} 24. Kc2 {[%clk 0:01:35]}  Rfd8 {[%clk 0:00:19]} 25. Nb1 {[%clk 0:01:34]}  a4 {[%clk 0:00:14]} 26. Qxb4 {[%clk 0:01:30]}  Nxa2 {[%clk 0:00:14]} 27. Qxa4 {[%clk 0:01:26]}  Rc7 {[%clk 0:00:05]} 28. Qxa2 {[%clk 0:01:23]}  e5 {[%clk 0:00:05]} 29. Rd1 {[%clk 0:01:19]}  Rb8 {[%clk 0:00:05]} 30. Bd5 {[%clk 0:01:16]}  e4 {[%clk 0:00:05]} 31. Nc3 {[%clk 0:01:16]}  h5 {[%clk 0:00:04]} 32. Rb1 {[%clk 0:01:14]}  Rd8 {[%clk 0:00:04]} 33. Qa5 {[%clk 0:01:12]}  Rdc8 {[%clk 0:00:02]} 34. Nb5 {[%clk 0:01:08]}  Rc5 {[%clk 0:00:02]} 35. Rd1 {[%clk 0:01:01]}  h4 {[%clk 0:00:02]} 36. Qa7 {[%clk 0:01:00]}  Kh8 {[%clk 0:00:01]} 37. Qxf7 {[%clk 0:00:57]}  Rxb5 {[%clk 0:00:01]} 1-0


[Site "https://www.chess.com"]

[Event "Titled Tuesday Blitz February 15 Late 2022"]
[White "Rosen, Eric"]
[Black "Petrosyan, Manuel"]
[WhiteFideId "2032562"]
[BlackFideId "13300857"]
[WhiteElo "2362"]
[BlackElo "2592"]
[Result "1-0"]
[Round "09"]
[TimeControl "180+1"]
[Date "2022.02.15"]
[WhiteClock "0:00:45"]
[BlackClock "0:00:01"]

1. d4 {[%clk 0:03:00]}  g6 {[%clk 0:02:56]} 2. e4 {[%clk 0:02:55]}  Bg7 {[%clk 0:02:56]} 3. Nf3 {[%clk 0:02:52]}  d6 {[%clk 0:02:56]} 4. Bc4 {[%clk 0:02:50]}  Nf6 {[%clk 0:02:50]} 5. Qe2 {[%clk 0:02:49]}  O-O {[%clk 0:02:45]} 6. e5 {[%clk 0:02:47]}  dxe5 {[%clk 0:02:44]} 7. dxe5 {[%clk 0:02:48]}  Nd5 {[%clk 0:02:44]} 8. h3 {[%clk 0:02:46]}  Nb6 {[%clk 0:02:30]} 9. Bb3 {[%clk 0:02:46]}  Nc6 {[%clk 0:02:31]} 10. O-O {[%clk 0:02:44]}  Nd4 {[%clk 0:02:31]} 11. Nxd4 {[%clk 0:02:44]}  Qxd4 {[%clk 0:02:32]} 12. Re1 {[%clk 0:02:41]}  Bf5 {[%clk 0:02:16]} 13. Nd2 {[%clk 0:02:28]}  Qd7 {[%clk 0:01:56]} 14. Nf3 {[%clk 0:02:27]}  Be6 {[%clk 0:01:46]} 15. Bf4 {[%clk 0:02:19]}  Rad8 {[%clk 0:01:42]} 16. Ng5 {[%clk 0:02:10]}  Bxb3 {[%clk 0:01:21]} 17. axb3 {[%clk 0:02:10]}  e6 {[%clk 0:01:21]} 18. Ne4 {[%clk 0:02:05]}  a6 {[%clk 0:00:19]} 19. Nf6+ {[%clk 0:01:57]}  Bxf6 {[%clk 0:00:19]} 20. exf6 {[%clk 0:01:58]}  Rfe8 {[%clk 0:00:09]} 21. Be5 {[%clk 0:01:44]}  Qc6 {[%clk 0:00:09]} 22. Qe3 {[%clk 0:01:41]}  Kh8 {[%clk 0:00:05]} 23. Qh6 {[%clk 0:01:26]}  Rg8 {[%clk 0:00:05]} 24. Rad1 {[%clk 0:01:27]}  Rxd1 {[%clk 0:00:01]} 25. Rxd1 {[%clk 0:01:28]}  Nd7 {[%clk 0:00:01]} 26. h4 {[%clk 0:00:49]}  g5 {[%clk 0:00:01]} 27. hxg5 {[%clk 0:00:46]}  Qxc2 {[%clk 0:00:01]} 28. Rxd7 {[%clk 0:00:45]} 1-0


[Site "https://www.chess.com"]

[Event "Titled Tuesday Blitz February 15 Late 2022"]
[White "Sarana, Alexey"]
[Black "Michelakos, Panagiotis"]
[WhiteFideId "24133795"]
[BlackFideId "4216067"]
[WhiteElo "2665"]
[BlackElo "2140"]
[Result "0-1"]
[Round "09"]
[TimeControl "180+1"]
[Date "2022.02.15"]
[WhiteClock "0:00:10"]
[BlackClock "0:00:10"]

1. e4 {[%clk 0:03:00]}  c5 {[%clk 0:02:58]} 2. Nf3 {[%clk 0:03:01]}  g6 {[%clk 0:02:59]} 3. c3 {[%clk 0:03:01]}  Bg7 {[%clk 0:02:58]} 4. d4 {[%clk 0:03:01]}  cxd4 {[%clk 0:02:58]} 5. cxd4 {[%clk 0:03:02]}  d6 {[%clk 0:02:59]} 6. Nc3 {[%clk 0:03:02]}  Nf6 {[%clk 0:02:59]} 7. Be2 {[%clk 0:03:01]}  O-O {[%clk 0:02:59]} 8. O-O {[%clk 0:03:02]}  Bg4 {[%clk 0:02:59]} 9. Be3 {[%clk 0:03:01]}  Nc6 {[%clk 0:02:59]} 10. Qd2 {[%clk 0:02:57]}  Rc8 {[%clk 0:02:55]} 11. Rac1 {[%clk 0:02:52]}  a6 {[%clk 0:02:53]} 12. d5 {[%clk 0:02:49]}  Bxf3 {[%clk 0:02:23]} 13. gxf3 {[%clk 0:02:50]}  Ne5 {[%clk 0:02:23]} 14. b3 {[%clk 0:02:49]}  b5 {[%clk 0:02:17]} 15. h3 {[%clk 0:02:46]}  Qa5 {[%clk 0:02:02]} 16. f4 {[%clk 0:02:45]}  Ned7 {[%clk 0:01:56]} 17. Bf3 {[%clk 0:02:44]}  Nc5 {[%clk 0:01:55]} 18. e5 {[%clk 0:02:23]}  dxe5 {[%clk 0:01:46]} 19. fxe5 {[%clk 0:02:23]}  Nfd7 {[%clk 0:01:46]} 20. e6 {[%clk 0:02:06]}  Ne5 {[%clk 0:01:34]} 21. exf7+ {[%clk 0:02:06]}  Kh8 {[%clk 0:01:30]} 22. Be2 {[%clk 0:02:05]}  Ncd3 {[%clk 0:01:24]} 23. Rc2 {[%clk 0:01:56]}  Nb4 {[%clk 0:01:24]} 24. Rcc1 {[%clk 0:01:52]}  Nbd3 {[%clk 0:01:24]} 25. Bd4 {[%clk 0:01:04]}  Nxc1 {[%clk 0:01:20]} 26. Rxc1 {[%clk 0:01:04]}  Qb4 {[%clk 0:01:11]} 27. Kg2 {[%clk 0:00:53]}  Nxf7 {[%clk 0:01:10]} 28. Bxg7+ {[%clk 0:00:47]}  Kxg7 {[%clk 0:01:11]} 29. Qe3 {[%clk 0:00:47]}  Qc5 {[%clk 0:01:07]} 30. Qg3 {[%clk 0:00:35]}  b4 {[%clk 0:01:04]} 31. Bxa6 {[%clk 0:00:35]}  bxc3 {[%clk 0:01:00]} 32. Bxc8 {[%clk 0:00:35]}  Rxc8 {[%clk 0:00:59]} 33. Qd3 {[%clk 0:00:34]}  Nd6 {[%clk 0:00:55]} 34. a3 {[%clk 0:00:33]}  Nf5 {[%clk 0:00:52]} 35. b4 {[%clk 0:00:28]}  Qd4 {[%clk 0:00:50]} 36. Qe2 {[%clk 0:00:21]}  Qxd5+ {[%clk 0:00:49]} 37. Kg1 {[%clk 0:00:21]}  Qd6 {[%clk 0:00:45]} 38. Qe4 {[%clk 0:00:18]}  c2 {[%clk 0:00:42]} 39. Kg2 {[%clk 0:00:18]}  Qd2 {[%clk 0:00:33]} 40. Qe5+ {[%clk 0:00:16]}  Kf7 {[%clk 0:00:30]} 41. Qb2 {[%clk 0:00:16]}  Nh4+ {[%clk 0:00:20]} 42. Kg1 {[%clk 0:00:13]}  Qd5 {[%clk 0:00:13]} 43. Kf1 {[%clk 0:00:11]}  Qd1+ {[%clk 0:00:09]} 44. Rxd1 {[%clk 0:00:10]}  cxd1=Q# {[%clk 0:00:10]} 0-1


[Site "https://www.chess.com"]

[Event "Titled Tuesday Blitz February 15 Late 2022"]
[White "Sargsyan, Anna M."]
[Black "Al Mukhaini, Shima"]
[WhiteFideId "13308130"]
[BlackFideId "22005854"]
[WhiteElo "2271"]
[BlackElo "2400"]
[Result "1-0"]
[Round "09"]
[TimeControl "180+1"]
[Date "2022.02.16"]
[WhiteClock "0:01:32"]
[BlackClock "0:00:16"]

1. d4 {[%clk 0:02:58]}  Nf6 {[%clk 0:02:56]} 2. c4 {[%clk 0:02:58]}  Nc6 {[%clk 0:02:56]} 3. d5 {[%clk 0:02:55]}  Ne5 {[%clk 0:02:56]} 4. Nd2 {[%clk 0:02:54]}  e6 {[%clk 0:02:54]} 5. e4 {[%clk 0:02:52]}  d6 {[%clk 0:02:45]} 6. f4 {[%clk 0:02:51]}  Ng6 {[%clk 0:02:45]} 7. Qf3 {[%clk 0:02:44]}  Be7 {[%clk 0:02:44]} 8. Bd3 {[%clk 0:02:43]}  O-O {[%clk 0:02:43]} 9. Ne2 {[%clk 0:02:43]}  exd5 {[%clk 0:02:40]} 10. cxd5 {[%clk 0:02:43]}  c6 {[%clk 0:02:40]} 11. dxc6 {[%clk 0:02:41]}  bxc6 {[%clk 0:02:41]} 12. O-O {[%clk 0:02:40]}  Ng4 {[%clk 0:02:14]} 13. h3 {[%clk 0:02:17]}  Qb6+ {[%clk 0:02:04]} 14. Kh1 {[%clk 0:02:16]}  Nh4 {[%clk 0:01:50]} 15. Qg3 {[%clk 0:02:11]}  Ne3 {[%clk 0:01:22]} 16. Rg1 {[%clk 0:02:11]}  Nexg2 {[%clk 0:00:48]} 17. Rxg2 {[%clk 0:02:10]}  Nxg2 {[%clk 0:00:47]} 18. Kxg2 {[%clk 0:02:04]}  f5 {[%clk 0:00:43]} 19. Nc4 {[%clk 0:02:01]}  Qd8 {[%clk 0:00:35]} 20. exf5 {[%clk 0:01:58]}  Bxf5 {[%clk 0:00:31]} 21. Bxf5 {[%clk 0:01:57]}  Rxf5 {[%clk 0:00:32]} 22. Be3 {[%clk 0:01:56]}  Rf6 {[%clk 0:00:23]} 23. Kh2 {[%clk 0:01:55]}  Rg6 {[%clk 0:00:23]} 24. Qf3 {[%clk 0:01:54]}  Rf6 {[%clk 0:00:19]} 25. Rg1 {[%clk 0:01:49]}  Rc8 {[%clk 0:00:17]} 26. Bd4 {[%clk 0:01:46]}  Rf7 {[%clk 0:00:17]} 27. Bc3 {[%clk 0:01:37]}  Bf8 {[%clk 0:00:16]} 28. Ne3 {[%clk 0:01:33]}  d5 {[%clk 0:00:15]} 29. Ng4 {[%clk 0:01:32]}  Bd6 {[%clk 0:00:14]} 30. Nh6+ {[%clk 0:01:32]}  Kf8 {[%clk 0:00:15]} 31. Nxf7 {[%clk 0:01:32]}  Kxf7 {[%clk 0:00:16]} 32. Rxg7+ {[%clk 0:01:32]} 1-0


[Site "https://www.chess.com"]

[Event "Titled Tuesday Blitz February 15 Late 2022"]
[White "Stanisz, Patryk"]
[Black "Vargas Pereda, Jesus Manue"]
[WhiteFideId "1123106"]
[BlackFideId "5115710"]
[WhiteElo "1876"]
[BlackElo "1779"]
[Result "1-0"]
[Round "09"]
[TimeControl "180+1"]
[Date "2022.02.16"]
[WhiteClock "0:00:46"]
[BlackClock "0:00:06"]

1. Nf3 {[%clk 0:03:00]}  Nf6 {[%clk 0:02:58]} 2. c4 {[%clk 0:03:00]}  g6 {[%clk 0:02:55]} 3. Nc3 {[%clk 0:03:00]}  Bg7 {[%clk 0:02:54]} 4. g3 {[%clk 0:02:58]}  O-O {[%clk 0:02:54]} 5. Bg2 {[%clk 0:02:58]}  d6 {[%clk 0:02:48]} 6. O-O {[%clk 0:02:58]}  c6 {[%clk 0:02:46]} 7. d4 {[%clk 0:02:54]}  Qa5 {[%clk 0:02:43]} 8. h3 {[%clk 0:02:48]}  Qh5 {[%clk 0:02:42]} 9. h4 {[%clk 0:02:32]}  Bg4 {[%clk 0:02:33]} 10. Nh2 {[%clk 0:02:25]}  Be6 {[%clk 0:02:25]} 11. b3 {[%clk 0:02:21]}  Ng4 {[%clk 0:01:45]} 12. Bf3 {[%clk 0:02:07]}  Nd7 {[%clk 0:01:25]} 13. e4 {[%clk 0:02:01]}  f5 {[%clk 0:01:21]} 14. d5 {[%clk 0:01:40]}  cxd5 {[%clk 0:01:01]} 15. cxd5 {[%clk 0:01:33]}  Bf7 {[%clk 0:00:56]} 16. Nxg4 {[%clk 0:01:26]}  fxg4 {[%clk 0:00:52]} 17. Bxg4 {[%clk 0:01:26]}  Qe5 {[%clk 0:00:45]} 18. Bb2 {[%clk 0:01:16]}  Nf6 {[%clk 0:00:41]} 19. Bf3 {[%clk 0:01:14]}  Nxe4 {[%clk 0:00:09]} 20. Bxe4 {[%clk 0:01:09]}  Rac8 {[%clk 0:00:06]} 21. Qd3 {[%clk 0:00:46]} 1-0


[Site "https://www.chess.com"]

[Event "Titled Tuesday Blitz February 15 Late 2022"]
[White "Stankovic, Ivan G"]
[Black "Bellissimo, Joseph F."]
[WhiteFideId "902837"]
[BlackFideId "2609843"]
[WhiteElo "2195"]
[BlackElo "2061"]
[Result "0-1"]
[Round "09"]
[TimeControl "180+1"]
[Date "2022.02.16"]
[WhiteClock "0:01:02"]
[BlackClock "0:01:43"]

1. e4 {[%clk 0:02:58]}  e6 {[%clk 0:03:00]} 2. d3 {[%clk 0:02:57]}  d5 {[%clk 0:03:01]} 3. Nd2 {[%clk 0:02:56]}  c5 {[%clk 0:03:01]} 4. Ngf3 {[%clk 0:02:55]}  Nc6 {[%clk 0:03:01]} 5. g3 {[%clk 0:02:55]}  Bd6 {[%clk 0:03:01]} 6. Bg2 {[%clk 0:02:55]}  Nge7 {[%clk 0:03:02]} 7. O-O {[%clk 0:02:55]}  O-O {[%clk 0:03:03]} 8. Re1 {[%clk 0:02:55]}  Qc7 {[%clk 0:03:03]} 9. c3 {[%clk 0:02:52]}  f6 {[%clk 0:03:02]} 10. Nf1 {[%clk 0:02:47]}  Bd7 {[%clk 0:03:02]} 11. Ne3 {[%clk 0:02:38]}  Be8 {[%clk 0:03:01]} 12. a4 {[%clk 0:02:38]}  Bh5 {[%clk 0:03:00]} 13. Qb3 {[%clk 0:02:27]}  Bxf3 {[%clk 0:02:55]} 14. Bxf3 {[%clk 0:02:27]}  Ne5 {[%clk 0:02:53]} 15. Be2 {[%clk 0:02:22]}  c4 {[%clk 0:02:48]} 16. dxc4 {[%clk 0:02:16]}  dxe4 {[%clk 0:02:48]} 17. c5 {[%clk 0:02:09]}  Bxc5 {[%clk 0:02:48]} 18. Qxe6+ {[%clk 0:02:08]}  Kh8 {[%clk 0:02:49]} 19. Nf5 {[%clk 0:01:58]}  Rae8 {[%clk 0:02:43]} 20. Be3 {[%clk 0:01:53]}  Nxf5 {[%clk 0:02:09]} 21. Qxf5 {[%clk 0:01:50]}  Bxe3 {[%clk 0:02:10]} 22. fxe3 {[%clk 0:01:50]}  Qb6 {[%clk 0:02:09]} 23. Qxe4 {[%clk 0:01:44]}  Nc6 {[%clk 0:02:07]} 24. Qg2 {[%clk 0:01:39]}  Rxe3 {[%clk 0:02:07]} 25. Qf2 {[%clk 0:01:35]}  Rfe8 {[%clk 0:02:06]} 26. Kg2 {[%clk 0:01:22]}  Qxb2 {[%clk 0:02:00]} 27. Bb5 {[%clk 0:01:16]}  Qxc3 {[%clk 0:01:50]} 28. Rac1 {[%clk 0:01:11]}  Qxe1 {[%clk 0:01:43]} 29. Rxe1 {[%clk 0:01:11]}  Rxe1 {[%clk 0:01:44]} 30. Bxc6 {[%clk 0:01:09]}  R8e2 {[%clk 0:01:44]} 31. Bxb7 {[%clk 0:01:05]}  Rxf2+ {[%clk 0:01:44]} 32. Kxf2 {[%clk 0:01:05]}  Rb1 {[%clk 0:01:43]} 33. Bc6 {[%clk 0:01:04]}  Rb2+ {[%clk 0:01:43]} 34. Kg1 {[%clk 0:01:02]}  Kg8 {[%clk 0:01:43]} 0-1


[Site "https://www.chess.com"]

[Event "Titled Tuesday Blitz February 15 Late 2022"]
[White "Tan, Jun Ying"]
[Black "Mladenovic, Stefan"]
[WhiteFideId "5710413"]
[BlackFideId "942227"]
[WhiteElo "1827"]
[BlackElo "2355"]
[Result "0-1"]
[Round "09"]
[TimeControl "180+1"]
[Date "2022.02.16"]
[WhiteClock "0:00:19"]
[BlackClock "0:00:04"]

1. d4 {[%clk 0:03:00]}  Nf6 {[%clk 0:02:57]} 2. c4 {[%clk 0:03:01]}  e6 {[%clk 0:02:57]} 3. Nc3 {[%clk 0:03:02]}  Bb4 {[%clk 0:02:56]} 4. Qc2 {[%clk 0:03:00]}  O-O {[%clk 0:02:56]} 5. e4 {[%clk 0:03:00]}  d5 {[%clk 0:02:55]} 6. e5 {[%clk 0:03:01]}  Ne4 {[%clk 0:02:54]} 7. Bd3 {[%clk 0:03:01]}  c5 {[%clk 0:02:51]} 8. Ne2 {[%clk 0:03:00]}  Nc6 {[%clk 0:02:46]} 9. O-O {[%clk 0:02:52]}  Bxc3 {[%clk 0:02:44]} 10. bxc3 {[%clk 0:02:51]}  f5 {[%clk 0:02:36]} 11. f3 {[%clk 0:02:35]}  Ng5 {[%clk 0:02:29]} 12. cxd5 {[%clk 0:02:24]}  exd5 {[%clk 0:02:26]} 13. dxc5 {[%clk 0:02:22]}  g6 {[%clk 0:02:09]} 14. Nd4 {[%clk 0:02:16]}  Ne6 {[%clk 0:02:01]} 15. Be3 {[%clk 0:02:03]}  Nxe5 {[%clk 0:01:59]} 16. Nxe6 {[%clk 0:02:01]}  Bxe6 {[%clk 0:01:56]} 17. Bd4 {[%clk 0:02:02]}  Nc6 {[%clk 0:01:40]} 18. Rfe1 {[%clk 0:01:59]}  Nxd4 {[%clk 0:01:27]} 19. cxd4 {[%clk 0:02:00]}  Re8 {[%clk 0:01:22]} 20. Re5 {[%clk 0:01:58]}  Bf7 {[%clk 0:01:16]} 21. Rae1 {[%clk 0:01:56]}  Qh4 {[%clk 0:01:04]} 22. Qf2 {[%clk 0:01:50]}  Qf6 {[%clk 0:00:48]} 23. f4 {[%clk 0:01:43]}  b6 {[%clk 0:00:46]} 24. h3 {[%clk 0:01:17]}  Qc6 {[%clk 0:00:34]} 25. Rc1 {[%clk 0:01:05]}  Rac8 {[%clk 0:00:29]} 26. Ba6 {[%clk 0:01:01]}  Rc7 {[%clk 0:00:26]} 27. Qe2 {[%clk 0:00:46]}  Qa4 {[%clk 0:00:21]} 28. Bb5 {[%clk 0:00:37]}  Qxd4+ {[%clk 0:00:20]} 29. Kh1 {[%clk 0:00:37]}  Rxe5 {[%clk 0:00:18]} 30. fxe5 {[%clk 0:00:38]}  Rxc5 {[%clk 0:00:08]} 31. Rxc5 {[%clk 0:00:32]}  Qxc5 {[%clk 0:00:09]} 32. e6 {[%clk 0:00:32]}  Qc1+ {[%clk 0:00:08]} 33. Kh2 {[%clk 0:00:32]}  Qc7+ {[%clk 0:00:07]} 34. g3 {[%clk 0:00:32]}  d4 {[%clk 0:00:03]} 35. exf7+ {[%clk 0:00:31]}  Kxf7 {[%clk 0:00:04]} 36. Bc4+ {[%clk 0:00:31]}  Kg7 {[%clk 0:00:04]} 37. Qe6 {[%clk 0:00:30]}  Qd8 {[%clk 0:00:02]} 38. Qf7+ {[%clk 0:00:28]}  Kh6 {[%clk 0:00:02]} 39. Qd5 {[%clk 0:00:26]}  Qf6 {[%clk 0:00:01]} 40. h4 {[%clk 0:00:26]}  Kg7 {[%clk 0:00:02]} 41. Qd7+ {[%clk 0:00:25]}  Kh6 {[%clk 0:00:02]} 42. Qxa7 {[%clk 0:00:25]}  Qe5 {[%clk 0:00:03]} 43. Qxb6 {[%clk 0:00:23]}  f4 {[%clk 0:00:03]} 44. Qe6 {[%clk 0:00:20]}  fxg3+ {[%clk 0:00:03]} 45. Kh3 {[%clk 0:00:18]}  Qf4 {[%clk 0:00:03]} 46. Qg4 {[%clk 0:00:19]}  Qxg4+ {[%clk 0:00:03]} 47. Kxg4 {[%clk 0:00:19]}  g2 {[%clk 0:00:03]} 48. Kf3 {[%clk 0:00:19]}  g1=Q {[%clk 0:00:04]} 0-1


[Site "https://www.chess.com"]

[Event "Titled Tuesday Blitz February 15 Late 2022"]
[White "Tanenbaum, Zachary"]
[Black "Mikhailovsky, Vladimir"]
[WhiteFideId "2060850"]
[BlackFideId "34105414"]
[WhiteElo "2168"]
[BlackElo "2371"]
[Result "1/2-1/2"]
[Round "09"]
[TimeControl "180+1"]
[Date "2022.02.15"]
[WhiteClock "0:00:06"]
[BlackClock "0:00:08"]

1. e4 {[%clk 0:03:00]}  Nf6 {[%clk 0:02:58]} 2. e5 {[%clk 0:03:00]}  Nd5 {[%clk 0:02:58]} 3. d4 {[%clk 0:03:01]}  d6 {[%clk 0:02:59]} 4. Nf3 {[%clk 0:03:02]}  dxe5 {[%clk 0:02:59]} 5. Nxe5 {[%clk 0:03:03]}  c6 {[%clk 0:03:00]} 6. Bc4 {[%clk 0:03:03]}  Nd7 {[%clk 0:03:00]} 7. Nf3 {[%clk 0:03:03]}  N7f6 {[%clk 0:03:01]} 8. O-O {[%clk 0:03:03]}  Bg4 {[%clk 0:03:01]} 9. Re1 {[%clk 0:03:02]}  e6 {[%clk 0:03:01]} 10. c3 {[%clk 0:03:01]}  Bd6 {[%clk 0:03:01]} 11. h3 {[%clk 0:02:59]}  Bh5 {[%clk 0:03:02]} 12. Nbd2 {[%clk 0:02:55]}  O-O {[%clk 0:03:01]} 13. Ne4 {[%clk 0:02:55]}  Nxe4 {[%clk 0:03:00]} 14. Rxe4 {[%clk 0:02:56]}  Qc7 {[%clk 0:02:51]} 15. Bd2 {[%clk 0:02:53]}  Rfd8 {[%clk 0:02:48]} 16. Re1 {[%clk 0:02:44]}  Nf6 {[%clk 0:02:41]} 17. Bg5 {[%clk 0:02:41]}  c5 {[%clk 0:02:39]} 18. Bxf6 {[%clk 0:02:29]}  gxf6 {[%clk 0:02:39]} 19. Qd3 {[%clk 0:02:22]}  cxd4 {[%clk 0:02:21]} 20. Nxd4 {[%clk 0:02:23]}  Bc5 {[%clk 0:02:15]} 21. Nxe6 {[%clk 0:01:21]}  fxe6 {[%clk 0:02:00]} 22. Qf5 {[%clk 0:01:21]}  Bf7 {[%clk 0:01:32]} 23. Bxe6 {[%clk 0:01:20]}  Bxe6 {[%clk 0:01:27]} 24. Rxe6 {[%clk 0:01:19]}  Rd2 {[%clk 0:01:20]} 25. Rxf6 {[%clk 0:00:46]}  Bxf2+ {[%clk 0:00:59]} 26. Kh1 {[%clk 0:00:46]}  Rad8 {[%clk 0:00:52]} 27. Rf1 {[%clk 0:00:26]}  Qg3 {[%clk 0:00:43]} 28. Qe6+ {[%clk 0:00:12]}  Kh8 {[%clk 0:00:42]} 29. Rf3 {[%clk 0:00:11]}  Qc7 {[%clk 0:00:11]} 30. Qf6+ {[%clk 0:00:08]}  Kg8 {[%clk 0:00:11]} 31. R3xf2 {[%clk 0:00:03]}  Rxf2 {[%clk 0:00:10]} 32. Qxf2 {[%clk 0:00:03]}  Qe5 {[%clk 0:00:07]} 33. Qf7+ {[%clk 0:00:03]}  Kh8 {[%clk 0:00:07]} 34. Qf6+ {[%clk 0:00:03]}  Qxf6 {[%clk 0:00:07]} 35. Rxf6 {[%clk 0:00:04]}  Rd2 {[%clk 0:00:07]} 36. Rf7 {[%clk 0:00:03]}  Rxb2 {[%clk 0:00:06]} 37. a4 {[%clk 0:00:04]}  a5 {[%clk 0:00:05]} 38. Kh2 {[%clk 0:00:03]}  b5 {[%clk 0:00:06]} 39. Rb7 {[%clk 0:00:02]}  b4 {[%clk 0:00:06]} 40. c4 {[%clk 0:00:01]}  Ra2 {[%clk 0:00:05]} 41. c5 {[%clk 0:00:01]}  Rc2 {[%clk 0:00:06]} 42. Rb5 {[%clk 0:00:01]}  b3 {[%clk 0:00:04]} 43. Rxb3 {[%clk 0:00:01]}  Rc4 {[%clk 0:00:04]} 44. Rb5 {[%clk 0:00:02]}  Rxa4 {[%clk 0:00:04]} 45. c6 {[%clk 0:00:02]}  Rc4 {[%clk 0:00:05]} 46. Rxa5 {[%clk 0:00:02]}  Rxc6 {[%clk 0:00:05]} 47. Ra7 {[%clk 0:00:03]}  Kg8 {[%clk 0:00:05]} 48. h4 {[%clk 0:00:04]}  Rc3 {[%clk 0:00:05]} 49. g3 {[%clk 0:00:04]}  Rc4 {[%clk 0:00:05]} 50. Kh3 {[%clk 0:00:04]}  Rd4 {[%clk 0:00:05]} 51. Re7 {[%clk 0:00:04]}  Rc4 {[%clk 0:00:04]} 52. Kg2 {[%clk 0:00:05]}  Rc3 {[%clk 0:00:04]} 53. Kf2 {[%clk 0:00:05]}  Rb3 {[%clk 0:00:04]} 54. Re3 {[%clk 0:00:04]}  Rb4 {[%clk 0:00:05]} 55. Kf3 {[%clk 0:00:04]}  Kf7 {[%clk 0:00:05]} 56. Re4 {[%clk 0:00:05]}  Rb3+ {[%clk 0:00:05]} 57. Kf4 {[%clk 0:00:05]}  Kf6 {[%clk 0:00:06]} 58. g4 {[%clk 0:00:05]}  h6 {[%clk 0:00:06]} 59. Rc4 {[%clk 0:00:04]}  Rb6 {[%clk 0:00:07]} 60. Rd4 {[%clk 0:00:04]}  Rc6 {[%clk 0:00:07]} 61. Rb4 {[%clk 0:00:04]}  Ra6 {[%clk 0:00:07]} 62. Rc4 {[%clk 0:00:04]}  Rb6 {[%clk 0:00:07]} 63. Rd4 {[%clk 0:00:04]}  Rc6 {[%clk 0:00:08]} 64. Re4 {[%clk 0:00:04]}  Rb6 {[%clk 0:00:08]} 65. Re3 {[%clk 0:00:04]}  Rb4+ {[%clk 0:00:08]} 66. Kg3 {[%clk 0:00:04]}  Rb6 {[%clk 0:00:09]} 67. Rf3+ {[%clk 0:00:05]}  Kg6 {[%clk 0:00:09]} 68. h5+ {[%clk 0:00:05]}  Kg7 {[%clk 0:00:09]} 69. Kh4 {[%clk 0:00:05]}  Rb1 {[%clk 0:00:09]} 70. Rg3 {[%clk 0:00:04]}  Rh1+ {[%clk 0:00:10]} 71. Rh3 {[%clk 0:00:05]}  Rg1 {[%clk 0:00:10]} 72. Re3 {[%clk 0:00:05]}  Rh1+ {[%clk 0:00:08]} 73. Kg3 {[%clk 0:00:05]}  Rg1+ {[%clk 0:00:09]} 74. Kf3 {[%clk 0:00:05]}  Rf1+ {[%clk 0:00:09]} 75. Kg2 {[%clk 0:00:06]}  Ra1 {[%clk 0:00:07]} 76. Kg3 {[%clk 0:00:06]}  Rg1+ {[%clk 0:00:07]} 77. Kf3 {[%clk 0:00:06]}  Rf1+ {[%clk 0:00:07]} 78. Kg2 {[%clk 0:00:06]}  Ra1 {[%clk 0:00:07]} 79. Rc3 {[%clk 0:00:06]}  Ra7 {[%clk 0:00:07]} 80. Kg3 {[%clk 0:00:05]}  Rb7 {[%clk 0:00:07]} 81. Rc6 {[%clk 0:00:05]}  Rb3+ {[%clk 0:00:06]} 82. Kh4 {[%clk 0:00:05]}  Re3 {[%clk 0:00:05]} 83. Rc7+ {[%clk 0:00:06]}  Kg8 {[%clk 0:00:05]} 84. Rb7 {[%clk 0:00:05]}  Rd3 {[%clk 0:00:05]} 85. Ra7 {[%clk 0:00:05]}  Rb3 {[%clk 0:00:05]} 86. Ra6 {[%clk 0:00:05]}  Kg7 {[%clk 0:00:05]} 87. Rg6+ {[%clk 0:00:05]}  Kh7 {[%clk 0:00:05]} 88. Rf6 {[%clk 0:00:05]}  Kg7 {[%clk 0:00:06]} 89. Rf2 {[%clk 0:00:05]}  Ra3 {[%clk 0:00:06]} 90. Rg2 {[%clk 0:00:05]}  Rb3 {[%clk 0:00:06]} 91. Rg3 {[%clk 0:00:06]}  Rb1 {[%clk 0:00:07]} 92. Kh3 {[%clk 0:00:06]}  Kf6 {[%clk 0:00:07]} 93. Rf3+ {[%clk 0:00:06]}  Kg7 {[%clk 0:00:07]} 94. Kg3 {[%clk 0:00:07]}  Rb4 {[%clk 0:00:08]} 95. Re3 {[%clk 0:00:06]}  Rc4 {[%clk 0:00:08]} 96. Kf3 {[%clk 0:00:07]}  Rd4 {[%clk 0:00:08]} 97. Re4 {[%clk 0:00:07]}  Rd1 {[%clk 0:00:09]} 98. Kf4 {[%clk 0:00:08]}  Kf6 {[%clk 0:00:09]} 99. Rc4 {[%clk 0:00:07]}  Rf1+ {[%clk 0:00:10]} 100. Kg3 {[%clk 0:00:07]}  Rg1+ {[%clk 0:00:10]} 101. Kf2 {[%clk 0:00:07]}  Ra1 {[%clk 0:00:09]} 102. Rc6+ {[%clk 0:00:07]}  Kg5 {[%clk 0:00:07]} 103. Rc4 {[%clk 0:00:04]}  Ra3 {[%clk 0:00:06]} 104. Kg2 {[%clk 0:00:04]}  Rb3 {[%clk 0:00:06]} 105. Kh2 {[%clk 0:00:04]}  Ra3 {[%clk 0:00:07]} 106. Kg2 {[%clk 0:00:05]}  Rb3 {[%clk 0:00:07]} 107. Kh2 {[%clk 0:00:05]}  Ra3 {[%clk 0:00:08]} 108. Kg2 {[%clk 0:00:06]} 1/2-1/2


[Site "https://www.chess.com"]